bitfinex/quotes_ETHUSD_20250130
["timestamp","ask_amount","ask_price","bid_price","bid_amount"]
[1738207092971,0.8219,3169.0,3168.4,3.15608]
[1738207093299,3.15571,3168.9,3168.2,3.1563]
[1738207093605,3.93359495,3168.9,3168.2,3.1563]
[1738207094107,0.77788495,3168.9,3168.5,3.15606]
[1738207095218,0.8219,3169.0,3167.9,3.96631]
[1738207095368,0.62963032,3169.8,3169.2,3.15533]
[1738207095707,0.62963032,3169.8,3169.4,3.15515]
[1738207095869,0.7534,3170.1,3169.7,3.15484]
[1738207096071,0.6448271,3170.0,3169.4,3.15514]
[1738207096393,0.7534,3169.8,3168.7,3.15584]
[1738207096573,0.7534,3169.2,3168.7,3.15584]
[1738207096773,0.7534,3169.2,3168.3,0.8299]
[1738207096972,0.7534,3169.2,3168.8,3.15576]
[1738207097416,0.7534,3169.2,3168.6,6.31186]
[1738207097703,0.7534,3169.2,3168.7,3.15585]
[1738207098210,0.7534,3169.2,3168.4,3.15613]
[1738207098407,0.7534,3169.2,3168.3,3.1562]
[1738207098572,0.390867,3169.1,3168.5,3.15606]
[1738207098767,1.3047,3169.0,3168.0,3.93475]
[1738207098975,4.46031,3169.0,3168.1,3.1564]
[1738207099176,3.15583,3168.8,3168.1,3.1564]
[1738207099432,0.315583,3168.7,3168.1,3.1564]
[1738207099792,3.471453,3168.7,3168.1,3.1564]
[1738207100933,0.315583,3168.7,3167.7,0.8155]
[1738207101093,0.7547,3169.0,3168.5,3.156]
[1738207101296,0.7547,3169.0,3168.4,3.15609]
[1738207101640,3.91028,3169.0,3168.4,3.15609]
[1738207105063,3.15567,3168.9,3168.4,3.15609]
[1738207105219,0.706595,3168.9,3168.4,3.15609]
[1738207105423,0.7547,3169.0,3168.1,0.7631]
[1738207105424,0.7547,3169.0,3168.6,3.15595]
[1738207105607,0.7547,3169.0,3168.7,3.15583]
[1738207106139,1.3113,3169.4,3168.9,3.15563]
[1738207106348,2.057944,3169.4,3168.9,3.15563]
[1738207107841,3.15488,3169.7,3169.1,3.15545]
[1738207108141,3.92888,3169.7,3169.1,3.15545]
[1738207108338,3.15498,3169.6,3169.0,3.15549]
[1738207109433,3.15498,3169.6,3169.1,3.15546]
[1738207109818,3.15498,3169.6,3169.0,3.15549]
[1738207110120,0.45520788,3169.5,3169.0,3.15549]
[1738207111271,3.15498,3169.6,3169.0,3.15549]
[1738207113129,3.93043,3169.3,3168.6,3.1559]
[1738207114739,3.93043,3169.3,3168.7,3.15586]
[1738207117449,0.7751,3169.3,3168.7,3.15586]
[1738207117632,0.7751,3169.3,3168.8,3.15571]
[1738207117944,1.168128,3169.3,3168.8,3.15571]
[1738207120494,0.7751,3169.3,3168.9,3.15563]
[1738207120863,0.7751,3169.3,3168.8,3.15571]
[1738207123906,3.93037,3169.3,3168.8,3.15571]
[1738207125632,3.93037,3169.3,3168.6,3.15594]
[1738207125932,3.93037,3169.3,3168.7,3.15586]
[1738207126229,4.638926,3169.3,3168.7,3.15586]
[1738207126839,3.15538,3169.2,3168.6,3.15594]
[1738207127037,3.15596,3168.7,3168.1,3.91016]
[1738207127193,0.8108,3168.6,3168.1,3.15646]
[1738207127397,4.282436,3168.6,3167.8,3.91038]
[1738207127626,0.55,3169.1,3168.2,3.1563]
[1738207127627,0.8108,3168.9,3168.2,3.1563]
[1738207127802,3.96653,3168.9,3168.2,3.1563]
[1738207128008,3.15577,3168.8,3168.2,3.1563]
[1738207130127,0.8312,3168.7,3168.0,3.15655]
[1738207130331,3.15618,3168.4,3167.8,3.15675]
[1738207130530,0.398738,3168.3,3167.8,3.15675]
[1738207131296,0.398738,3168.3,3167.1,3.16244]
[1738207131297,0.75,3168.2,3167.4,3.15709]
[1738207131625,3.15664,3168.0,3167.2,6.31463]
[1738207131800,3.15664,3168.0,3167.2,3.15728]
[1738207131996,3.15664,3168.0,3167.4,3.15707]
[1738207132698,3.15658,3168.0,3167.4,3.15716]
[1738207133003,3.98070826,3168.0,3167.4,3.15716]
[1738207133205,3.15666,3167.9,3167.4,3.15716]
[1738207133618,3.15666,3167.9,3167.2,6.31456]
[1738207133935,3.90683,3167.8,3167.2,3.15728]
[1738207135421,0.75,3167.8,3167.2,3.15728]
[1738207135624,3.547526,3167.7,3167.1,0.005]
[1738207136014,3.547526,3167.7,3167.1,3.16243]
[1738207138440,0.390666,3167.7,3167.2,3.15734]
[1738207138639,0.75,3167.8,3167.2,3.15734]
[1738207138938,3.90676,3167.8,3167.2,3.15734]
[1738207139342,0.8318,3167.7,3167.1,0.005]
[1738207139726,3.98831,3168.1,3167.5,3.15699]
[1738207139902,3.93393126,3168.0,3167.3,3.15719]
[1738207140500,3.15669,3167.9,3167.3,3.15719]
[1738207140744,3.91213,3167.7,3167.1,3.16245]
[1738207142339,0.7552,3167.7,3167.2,3.15735]
[1738207142539,3.1562,3168.4,3167.4,3.15709]
[1738207142744,0.7552,3168.0,3167.7,3.15677]
[1738207143543,3.15669,3167.9,3167.3,3.15716]
[1738207143720,3.91177,3168.0,3167.3,3.15719]
[1738207144043,0.391177,3167.9,3167.3,3.15719]
[1738207144631,0.391177,3167.9,3167.1,3.16245]
[1738207144822,3.15701,3167.6,3167.1,0.005]
[1738207145016,0.7932,3167.7,3167.1,0.005]
[1738207145229,3.95006,3167.7,3167.1,3.16246]
[1738207145406,0.450006,3167.6,3167.1,3.16246]
[1738207145857,0.450006,3167.6,3167.2,3.15735]
[1738207146020,0.7932,3167.7,3167.3,3.15725]
[1738207146920,0.7932,3167.7,3167.6,3.15696]
[1738207147120,0.7815,3168.2,3167.6,3.15696]
[1738207148628,0.7815,3168.2,3167.8,3.15676]
[1738207150065,0.7815,3168.2,3167.6,3.15696]
[1738207150245,0.83,3168.5,3168.0,3.15652]
[1738207150445,0.83,3168.5,3168.2,3.1563]
[1738207151172,0.7512,3168.8,3168.3,3.15617]
[1738207152893,0.7512,3168.8,3168.1,3.02014846]
[1738207153035,3.97017,3169.3,3168.7,3.15586]
[1738207153229,0.397017,3169.2,3168.7,3.15586]
[1738207153481,0.8149,3169.3,3168.9,3.15566]
[1738207153630,0.8149,3169.3,3169.0,3.15552]
[1738207153835,0.8149,3169.3,3168.9,3.15566]
[1738207154476,6.15483,3169.8,3168.9,3.15566]
[1738207154642,0.7524,3169.7,3169.2,3.15535]
[1738207154850,0.37524,3169.6,3169.1,3.15538]
[1738207155060,0.7524,3169.7,3169.3,3.15526]
[1738207155805,0.7524,3169.7,3168.8,0.8264]
[1738207155970,3.15521,3169.4,3168.7,3.15583]
[1738207156173,3.15497,3169.6,3168.5,3.81]
[1738207156371,3.15508,3169.5,3168.8,3.15568]
[1738207156983,3.15497,3169.6,3168.9,3.15564]
[1738207157196,3.15497,3169.6,3168.8,3.15568]
[1738207157498,3.15497,3169.6,3169.0,3.15554]
[1738207161392,3.15508,3169.5,3168.8,3.15568]
[1738207161604,3.15527,3169.3,3168.5,0.81]
[1738207161914,3.93577,3169.2,3168.5,3.15599]
[1738207162107,0.7804,3169.2,3168.7,3.15586]
[1738207162269,0.7804,3169.2,3168.7,3.1558]
[1738207162473,0.7804,3169.5,3169.1,3.15547]
[1738207162681,0.7804,3169.5,3169.0,3.15555]
[1738207163115,3.15545,3169.2,3168.5,3.15606]
[1738207164676,3.15545,3169.2,3168.6,3.15593]
[1738207165484,0.55,3169.2,3168.7,3.15586]
[1738207166677,0.7804,3169.3,3169.0,3.15547]
[1738207167113,0.7804,3169.3,3168.6,3.15595]
[1738207167278,0.55,3169.2,3168.6,3.15595]
[1738207168298,3.70539,3169.2,3168.6,3.15595]
[1738207168518,4.153969,3169.2,3168.6,3.15595]
[1738207169109,0.998579,3169.2,3168.7,3.15585]
[1738207169289,0.55,3169.2,3168.7,3.15585]
[1738207174752,0.55,3169.2,3168.8,3.15576]
[1738207176055,0.7869,3170.2,3169.0,3.02014846]
[1738207176222,0.7869,3170.2,3169.8,3.1547]
[1738207176418,1.181015,3170.2,3169.9,3.15462]
[1738207176622,0.7869,3170.2,3169.9,3.15462]
[1738207178017,0.38051022,3171.5,3170.0,3.15457]
[1738207178018,0.8331,3170.7,3170.0,3.15457]
[1738207178223,0.15824475,3171.5,3170.0,3.15457]
[1738207178224,0.8331,3171.2,3170.7,3.1538]
[1738207178555,0.8331,3171.2,3170.9,3.15367]
[1738207178757,0.8331,3171.2,3171.0,3.15354]
[1738207178963,0.8125,3171.5,3171.0,3.15354]
[1738207179147,1.20905,3171.5,3171.0,3.15354]
[1738207179337,0.55,3171.4,3170.8,3.15377]
[1738207179536,4.36216,3171.5,3170.8,3.15377]
[1738207180323,0.55,3171.4,3170.8,3.15377]
[1738207180551,3.70318,3171.4,3170.5,0.802]
[1738207180761,0.491223,3171.3,3170.7,3.15387]
[1738207181362,3.70318,3171.4,3170.7,3.15387]
[1738207181664,3.15338,3171.2,3170.5,3.95606]
[1738207182541,3.15338,3171.2,3170.6,3.15396]
[1738207183962,3.70318,3171.4,3169.9,6.17475846]
[1738207183963,3.15394,3170.7,3169.9,0.7556]
[1738207184163,0.7684,3170.5,3169.7,3.15479]
[1738207184474,3.15426,3170.4,3169.7,3.15479]
[1738207186554,3.15426,3170.4,3169.8,3.15475]
[1738207187439,0.7684,3170.5,3169.8,3.15475]
[1738207187975,3.92249,3170.5,3169.8,3.15475]
[1738207188177,3.15417,3170.4,3169.7,3.15479]
[1738207188385,3.15417,3170.4,3169.8,3.15474]
[1738207188698,3.97757,3170.2,3169.6,3.15496]
[1738207189188,0.8232,3170.2,3169.6,3.15496]
[1738207189606,0.55,3170.1,3169.4,3.15516]
[1738207189769,1.057758,3170.1,3169.4,3.15516]
[1738207190095,3.15457,3170.0,3169.4,3.15516]
[1738207190671,0.55,3169.9,3169.2,3.15534]
[1738207191003,0.55,3169.9,3169.0,3.15553]
[1738207191004,3.9843,3169.8,3168.9,0.7571]
[1738207191204,3.9843,3169.8,3169.1,3.15546]
[1738207191929,1.3795,3169.4,3168.7,3.1558]
[1738207192766,1.3795,3169.4,3168.8,3.15575]
[1738207192998,1.3795,3169.4,3168.9,3.15565]
[1738207197111,1.3795,3169.4,3168.7,3.1558]
[1738207197613,1.3795,3169.4,3168.8,3.15576]
[1738207197777,0.7909,3169.8,3169.1,3.9549]
[1738207197971,0.7909,3169.8,3169.3,3.15525]
[1738207199813,0.7909,3169.8,3169.1,3.95496]
[1738207200878,0.55,3169.7,3169.1,3.95496]
[1738207201081,4.154429,3169.7,3168.8,3.786826]
[1738207202018,3.70536,3169.3,3168.4,3.90628]
[1738207202221,0.55,3169.1,3168.4,0.7502]
[1738207202720,0.55,3169.1,3168.5,3.15598]
[1738207203019,0.7993,3169.2,3168.5,3.15598]
[1738207203316,0.824,3169.6,3168.9,3.15557]
[1738207203515,0.824,3169.6,3169.0,3.15551]
[1738207203718,0.824,3169.6,3169.0,0.7782]
[1738207203921,0.824,3170.1,3169.3,3.15523]
[1738207204216,3.15461,3170.0,3169.1,3.15547]
[1738207204519,3.15461,3170.0,3169.0,0.7782]
[1738207204520,3.97847,3170.1,3169.2,3.15527]
[1738207204684,0.55,3169.9,3169.0,0.7782]
[1738207204879,0.824,3169.8,3169.0,3.9337]
[1738207205608,0.824,3169.8,3169.2,3.15534]
[1738207207916,3.15439,3170.2,3169.2,3.15534]
[1738207208231,0.7705,3170.1,3169.4,3.15516]
[1738207209125,0.8297,3170.5,3169.6,3.95604]
[1738207209427,0.8297,3170.5,3169.8,3.15473]
[1738207209829,3.9838,3170.5,3169.6,3.95604]
[1738207210513,0.8297,3170.5,3169.8,3.15475]
[1738207210703,0.8297,3170.5,3169.9,3.15457]
[1738207210907,0.8297,3170.5,3169.9,0.630932]
[1738207211196,0.8297,3170.5,3169.6,3.82124846]
[1738207211197,3.95602,3170.9,3170.0,3.1545]
[1738207211938,0.55,3170.8,3170.1,3.15446]
[1738207213199,0.55,3170.8,3169.6,0.8011]
[1738207213200,0.823,3170.5,3169.6,0.8011]
[1738207213602,0.823,3170.5,3170.1,3.15446]
[1738207213810,0.823,3170.5,3169.6,0.8011]
[1738207214127,3.97709,3170.5,3169.6,4.33611]
[1738207214714,0.823,3170.5,3169.7,3.15485]
[1738207215232,0.823,3170.5,3169.6,4.33611]
[1738207215427,3.15454,3170.1,3169.2,3.15536]
[1738207215627,0.7651,3170.0,3169.2,3.15536]
[1738207218257,0.55,3169.9,3169.0,3.94464]
[1738207218461,3.70495,3169.7,3168.9,3.15562]
[1738207218759,3.70495,3169.7,3169.0,3.15554]
[1738207222955,0.55,3169.7,3169.1,3.15543]
[1738207226532,0.7536,3169.9,3169.2,0.7744]
[1738207226729,0.7536,3169.9,3169.3,3.15517]
[1738207226985,0.7536,3169.9,3169.4,3.15515]
[1738207227536,0.7536,3169.9,3169.3,3.15517]
[1738207228062,0.7536,3169.9,3169.4,3.15514]
[1738207228255,0.7536,3169.9,3169.3,3.15517]
[1738207229740,0.55,3169.8,3168.9,3.1556]
[1738207229944,0.8131,3169.2,3168.6,3.84859285]
[1738207230157,0.8131,3169.2,3168.6,0.69263285]
[1738207230369,3.15547,3169.1,3168.4,3.15612]
[1738207230655,0.8131,3169.2,3168.4,6.31221]
[1738207230882,0.8131,3169.2,3168.6,3.15587]
[1738207231282,0.8131,3169.2,3168.8,3.15576]
[1738207232573,0.06057212,3169.1,3168.8,3.15576]
[1738207232774,0.06057212,3169.1,3168.8,3.786923]
[1738207234704,0.06057212,3169.1,3169.0,3.15556]
[1738207235898,0.06057212,3169.1,3168.8,3.15576]
[1738207237002,0.06057212,3169.1,3168.7,0.7851]
[1738207237206,0.06057212,3169.1,3168.9,3.15566]
[1738207237568,0.06057212,3169.1,3168.7,3.15581]
[1738207237891,0.06057212,3169.1,3168.8,3.15576]
[1738207238790,0.7934,3169.0,3168.6,3.15593]
[1738207239003,0.7934,3169.0,3168.4,3.15609]
[1738207239201,0.7934,3169.0,3168.5,3.15605]
[1738207239693,0.7934,3169.0,3168.2,3.15627]
[1738207239898,0.7934,3169.0,3168.3,3.15619]
[1738207240202,3.94899,3169.0,3168.2,3.85172185]
[1738207240525,3.15569,3168.9,3168.2,3.15627]
[1738207241624,3.15594,3168.7,3168.0,3.15654]
[1738207243090,0.7777,3168.6,3168.0,3.15654]
[1738207246755,0.7777,3168.6,3168.2,3.15635]
[1738207249778,0.7777,3168.6,3168.3,3.15625]
[1738207250978,0.7777,3168.6,3168.5,3.15606]
[1738207251182,0.7767,3168.9,3168.6,3.15594]
[1738207251347,0.7767,3168.9,3168.5,3.15606]
[1738207251542,0.7767,3168.9,3168.4,3.15615]
[1738207252370,0.8101,3168.7,3168.0,3.1565]
[1738207252585,0.55,3168.6,3167.9,3.15662]
[1738207252886,0.8101,3168.3,3167.7,3.15679]
[1738207253946,0.8101,3168.3,3167.6,0.7833]
[1738207253947,3.96646,3168.3,3167.5,3.15704]
[1738207254281,0.8101,3168.0,3167.5,3.15704]
[1738207255201,3.0,3169.0,3167.3,0.7833]
[1738207255501,0.8022,3168.4,3168.0,3.15655]
[1738207255823,0.8022,3168.4,3167.8,0.7826]
[1738207255961,0.8022,3168.4,3167.8,3.15674]
[1738207256170,0.55,3168.3,3167.6,3.15693]
[1738207256480,0.7631,3168.2,3167.6,3.15693]
[1738207256704,0.7631,3168.2,3167.7,3.15679]
[1738207256848,0.7631,3168.2,3167.6,3.15693]
[1738207259551,3.91947,3168.2,3167.6,3.15693]
[1738207260383,0.7631,3168.2,3167.7,3.15684]
[1738207260686,0.7631,3168.2,3167.7,0.631377]
[1738207260985,0.7606,3168.6,3167.7,0.631377]
[1738207261181,3.15639,3168.2,3167.5,3.15701]
[1738207261380,0.7606,3168.1,3167.5,3.15701]
[1738207261587,0.7606,3168.1,3167.6,3.15696]
[1738207262474,0.7606,3168.1,3167.7,3.15684]
[1738207263186,0.7606,3168.1,3167.8,3.15674]
[1738207263984,0.7606,3168.1,3167.6,6.31384]
[1738207264186,0.7606,3168.1,3167.7,3.15685]
[1738207264392,0.7606,3168.1,3167.8,3.15675]
[1738207265394,0.7606,3168.1,3167.9,3.15663]
[1738207265694,0.7606,3168.1,3167.8,3.1567]
[1738207265872,0.7606,3168.1,3167.9,3.15663]
[1738207266191,1.3341,3168.5,3167.9,3.15663]
[1738207266488,1.3341,3168.5,3168.0,3.15655]
[1738207268088,4.49019,3168.5,3167.9,3.15666]
[1738207273114,3.15617,3168.4,3167.9,3.15666]
[1738207274110,3.15617,3168.4,3167.7,3.15684]
[1738207274310,3.15617,3168.4,3167.7,6.3136]
[1738207277608,3.15617,3168.4,3167.7,3.15676]
[1738207278119,4.49019,3168.5,3168.0,3.15654]
[1738207278120,1.3341,3168.5,3168.0,3.15654]
[1738207278316,0.7841,3168.5,3168.0,3.15654]
[1738207278492,0.8114,3168.8,3168.3,3.15624]
[1738207278695,0.8114,3168.8,3168.5,3.15604]
[1738207279238,0.8114,3168.8,3168.3,3.15624]
[1738207280305,0.88537212,3169.1,3168.5,3.15604]
[1738207280628,4.04089212,3169.1,3168.5,3.15604]
[1738207280826,0.88537212,3169.1,3168.5,3.15604]
[1738207281029,0.88537212,3169.1,3168.7,3.15582]
[1738207283638,0.88537212,3169.1,3168.5,3.15606]
[1738207283816,0.06057212,3169.1,3169.0,3.15556]
[1738207284207,0.06057212,3169.1,3168.8,3.15572]
[1738207285510,0.06057212,3169.1,3168.9,3.15565]
[1738207285710,0.06057212,3169.1,3168.8,3.15572]
[1738207287351,0.06057212,3169.1,3168.9,3.15563]
[1738207287738,0.06057212,3169.1,3168.8,3.15572]
[1738207289549,0.06057212,3169.1,3168.4,0.7743]
[1738207289737,0.7879,3169.0,3168.3,3.15616]
[1738207289939,0.7794,3168.6,3167.9,3.15662]
[1738207290252,0.7794,3168.2,3167.7,3.15685]
[1738207290761,3.91545,3168.5,3167.9,3.15661]
[1738207290999,0.7593,3168.8,3168.3,3.15618]
[1738207292464,0.7593,3168.8,3168.3,3.471798]
[1738207292864,0.06057212,3169.1,3168.7,3.15585]
[1738207293063,0.06057212,3169.1,3168.9,3.15566]
[1738207295726,0.06057212,3169.1,3169.0,3.15556]
[1738207298998,0.06057212,3169.1,3168.9,3.15566]
[1738207299174,0.83157212,3169.1,3168.7,3.15584]
[1738207299786,0.83157212,3169.1,3168.6,3.15589]
[1738207299973,0.83157212,3169.1,3168.7,3.15584]
[1738207300495,0.83157212,3169.1,3168.6,3.15589]
[1738207301410,0.83157212,3169.1,3168.7,3.15586]
[1738207301608,0.06057212,3169.1,3168.9,3.1556]
[1738207301812,0.06057212,3169.1,3169.0,3.54658]
[1738207310533,0.06057212,3169.1,3169.0,3.7801549]
[1738207311133,0.06057212,3169.1,3169.0,4.07213313]
[1738207313339,0.06057212,3169.1,3169.0,3.83855823]
[1738207315801,0.06057212,3169.1,3169.0,4.07215828]
[1738207319952,0.06057212,3169.1,3169.0,7.09230674]
[1738207320105,0.06057212,3169.1,3169.0,7.90280674]
[1738207320606,0.06057212,3169.1,3169.0,10.90280674]
[1738207320991,0.06057212,3169.1,3169.0,10.91780674]
[1738207321111,3.0,3171.0,3169.0,10.91780674]
[1738207321112,0.8101,3170.5,3170.3,3.15425]
[1738207321632,0.8101,3170.5,3170.4,3.15417]
[1738207323144,0.86103879,3170.5,3170.4,3.15417]
[1738207324310,0.05093879,3170.5,3170.4,3.15417]
[1738207327109,0.8231,3170.4,3169.9,3.15465]
[1738207328345,0.8231,3170.4,3169.8,3.1547]
[1738207328518,0.8158,3170.3,3169.6,3.15495]
[1738207328715,3.97022,3170.2,3169.6,3.15495]
[1738207328915,0.7833,3170.1,3169.4,3.15514]
[1738207329128,0.7833,3170.0,3169.4,3.15514]
[1738207329512,0.7617,3169.9,3169.4,3.15514]
[1738207330113,0.7617,3169.9,3169.2,3.64268705]
[1738207330322,3.15485,3169.8,3169.2,0.48735705]
[1738207330648,3.91708,3169.2,3168.6,3.15589]
[1738207330849,0.7617,3169.2,3168.6,3.15589]
[1738207331055,0.7617,3169.2,3168.7,3.15586]
[1738207331846,3.91709,3169.2,3168.5,3.15601]
[1738207332022,0.7525,3169.0,3168.4,0.48735705]
[1738207332534,3.90808,3169.0,3168.4,3.15612]
[1738207333048,0.7525,3169.0,3168.5,3.15604]
[1738207333358,0.7525,3169.0,3168.7,3.15578]
[1738207333715,0.7525,3169.0,3168.5,3.15603]
[1738207334050,0.7525,3169.3,3169.2,3.15537]
[1738207334210,0.7525,3169.3,3169.0,3.15548]
[1738207334211,0.7525,3169.9,3169.5,3.15505]
[1738207334528,0.7525,3170.4,3170.2,3.1543]
[1738207334727,0.7525,3170.4,3170.0,3.15454]
[1738207336053,0.7525,3170.4,3169.9,3.15462]
[1738207337010,0.7525,3170.4,3170.0,3.15454]
[1738207337214,0.7525,3170.4,3170.1,3.15445]
[1738207337410,0.7525,3170.4,3170.2,3.15429]
[1738207337618,0.7525,3170.4,3170.3,3.15427]
[1738207337819,0.7525,3170.4,3170.0,3.15456]
[1738207338214,0.7525,3170.4,3169.8,3.15475]
[1738207338428,0.7525,3170.4,3170.1,3.15446]
[1738207340754,0.7525,3170.4,3170.3,3.15427]
[1738207340973,0.05093879,3170.5,3170.3,3.1542]
[1738207341638,0.05093879,3170.5,3170.1,3.15443]
[1738207342725,0.05093879,3170.5,3169.9,3.15464]
[1738207344130,0.55,3170.2,3168.7,0.48735705]
[1738207344462,0.7635,3169.9,3169.5,3.15504]
[1738207345025,0.7635,3169.9,3169.3,3.15522]
[1738207345226,0.7635,3169.9,3169.4,3.15514]
[1738207346028,0.7635,3169.9,3168.6,3.02014846]
[1738207346029,3.15499,3169.6,3168.9,3.15557]
[1738207346229,3.93425,3169.4,3168.7,3.15581]
[1738207346427,3.15527,3169.3,3168.7,3.15581]
[1738207346758,3.15541,3169.2,3168.5,3.15602]
[1738207347341,3.470589,3169.5,3168.2,1.24435705]
[1738207347342,3.15567,3168.9,3168.2,3.64366705]
[1738207347557,3.15567,3168.9,3168.2,0.48735705]
[1738207348266,3.1558,3168.8,3168.1,3.1564]
[1738207351168,0.55,3168.9,3168.1,3.1564]
[1738207351377,0.55,3168.9,3168.3,3.15625]
[1738207351378,3.70567,3168.9,3168.3,3.15625]
[1738207351688,3.70567,3168.9,3168.1,3.1564]
[1738207351870,3.70567,3168.9,3168.1,3.787704]
[1738207352587,0.779,3169.0,3168.7,3.15584]
[1738207353370,0.779,3169.0,3168.8,3.15576]
[1738207353865,1.3173,3169.4,3168.8,3.15576]
[1738207355033,0.7673,3169.4,3168.8,3.15576]
[1738207355234,0.7673,3169.4,3168.6,3.15595]
[1738207355235,3.15529,3169.3,3168.6,3.15595]
[1738207355436,3.15529,3169.3,3168.7,3.15586]
[1738207356635,3.15577,3168.8,3168.2,3.15633]
[1738207356865,3.15577,3168.8,3168.0,3.1565]
[1738207357039,3.15577,3168.8,3168.1,0.706617]
[1738207357239,3.15557,3169.0,3168.2,3.15635]
[1738207357636,3.15567,3168.9,3168.3,3.15625]
[1738207357862,0.7528,3168.8,3167.9,3.77324846]
[1738207358060,3.15587,3168.7,3168.1,3.15646]
[1738207358563,3.90858,3168.8,3168.1,3.15646]
[1738207358880,3.15592,3168.7,3168.1,3.15646]
[1738207360706,3.15592,3168.7,3167.6,3.02014846]
[1738207360707,3.1561,3168.5,3167.7,3.15686]
[1738207360883,3.15627,3168.3,3167.7,3.15686]
[1738207361361,3.15627,3168.3,3167.6,3.15695]
[1738207361763,3.15637,3168.2,3167.6,3.15695]
[1738207361971,0.7972,3167.9,3167.4,3.15713]
[1738207363514,3.95387,3167.9,3167.1,3.16236]
[1738207363685,3.15697,3167.6,3167.1,0.005]
[1738207363886,0.7972,3167.5,3167.1,0.005]
[1738207364082,0.7972,3167.9,3167.6,3.15694]
[1738207364486,0.7972,3167.9,3167.4,3.15709]
[1738207365528,0.7972,3167.9,3167.3,3.93587]
[1738207365727,0.7972,3167.9,3167.5,3.15706]
[1738207365926,3.1562,3168.4,3167.3,0.7787]
[1738207366092,0.7729,3168.3,3167.8,3.15676]
[1738207366825,0.7729,3168.3,3167.9,3.15664]
[1738207367631,0.7729,3168.3,3167.9,0.63134]
[1738207367837,0.7729,3168.3,3167.3,3.79884846]
[1738207367838,0.7941,3168.6,3168.0,3.15647]
[1738207368328,0.7941,3168.6,3168.1,3.15639]
[1738207368513,0.7941,3168.6,3168.0,3.15647]
[1738207369696,0.7941,3168.6,3168.1,3.15639]
[1738207370994,0.7941,3168.6,3168.0,3.15647]
[1738207371195,0.7941,3168.6,3168.2,3.15634]
[1738207372430,3.15619,3168.4,3167.7,3.15682]
[1738207372599,3.15627,3168.3,3167.7,3.15682]
[1738207372799,3.70613,3168.5,3167.7,3.15682]
[1738207373108,3.70613,3168.5,3167.8,3.15674]
[1738207373837,3.15616,3168.4,3167.7,3.15682]
[1738207373998,3.15616,3168.4,3167.8,3.15675]
[1738207374534,0.7941,3168.6,3167.9,3.15665]
[1738207374829,3.15617,3168.4,3167.7,3.788205]
[1738207375015,3.15617,3168.4,3167.5,3.15703]
[1738207375016,3.15636,3168.2,3167.5,3.15703]
[1738207375215,0.7703,3168.1,3167.5,3.90370763]
[1738207376020,0.7703,3168.1,3167.7,3.15684]
[1738207376831,0.7654,3168.6,3167.9,3.15656]
[1738207377035,3.92145,3168.6,3167.9,3.15656]
[1738207377552,0.55,3168.5,3167.9,3.15656]
[1738207377727,0.55,3168.5,3168.0,3.15653]
[1738207378716,0.55,3168.5,3167.9,0.315656]
[1738207378918,3.70607,3168.5,3167.9,0.315656]
[1738207379353,3.70633,3168.3,3167.7,3.15682]
[1738207380647,0.7951,3168.4,3167.7,3.15682]
[1738207380846,3.1563,3168.3,3167.7,3.15682]
[1738207381081,0.8296,3168.2,3167.7,3.15682]
[1738207382250,0.8296,3168.2,3167.8,3.15666]
[1738207382553,0.8093,3168.6,3168.1,3.15646]
[1738207383323,0.55,3168.5,3168.1,3.15646]
[1738207386075,0.8093,3168.6,3168.1,3.15646]
[1738207386268,0.8093,3168.6,3168.3,3.15621]
[1738207386654,0.8093,3168.6,3168.1,3.15646]
[1738207387749,0.8093,3168.6,3168.2,3.15628]
[1738207393052,3.15549,3169.1,3168.4,3.15609]
[1738207393254,3.95786,3169.2,3168.4,3.15609]
[1738207393471,3.15558,3169.0,3168.4,3.15609]
[1738207394193,3.15589,3168.7,3168.0,3.15649]
[1738207394484,0.8033,3168.8,3168.0,3.15649]
[1738207394485,3.15598,3168.6,3168.0,3.15649]
[1738207394654,0.8033,3168.5,3168.1,0.23430216]
[1738207395350,3.95937,3168.5,3168.1,0.23430216]
[1738207395555,0.8033,3168.5,3168.1,0.23430216]
[1738207395755,0.8033,3168.5,3168.1,3.39075216]
[1738207395956,0.8033,3168.5,3168.1,3.15645]
[1738207397394,0.8033,3168.5,3168.2,3.15635]
[1738207397594,0.8033,3168.5,3168.2,3.78764]
[1738207397916,0.7867,3168.9,3168.3,3.15625]
[1738207398595,3.15578,3168.8,3168.1,3.15645]
[1738207400188,3.15578,3168.8,3168.2,3.15628]
[1738207401307,0.7867,3168.9,3168.4,3.15615]
[1738207401503,0.7867,3168.9,3168.5,3.471665]
[1738207401708,0.7867,3168.9,3168.5,3.15605]
[1738207403203,0.55,3168.8,3168.0,3.15655]
[1738207403433,3.98566,3168.7,3167.8,3.15669]
[1738207403709,0.8297,3168.3,3167.7,3.15684]
[1738207404296,0.8297,3168.3,3167.5,3.15702]
[1738207404297,3.15637,3168.2,3167.5,3.15699]
[1738207404492,3.15637,3168.2,3167.8,0.23431049]
[1738207404493,3.15664,3168.0,3167.8,0.23431049]
[1738207404706,3.15666,3167.9,3167.8,0.23431049]
[1738207405288,3.70666,3167.9,3167.8,0.23431049]
[1738207405608,4.53636,3167.9,3167.8,0.23431049]
[1738207407587,0.55,3167.8,3167.2,0.48735705]
[1738207407793,3.15687,3167.7,3167.2,0.48735705]
[1738207408006,3.15687,3167.7,3167.1,3.16243]
[1738207408314,3.15736,3167.2,3167.1,0.005]